bitfinex/quotes_ETHUSD_20250524
["timestamp","ask_amount","ask_price","bid_price","bid_amount"]
[1748072497229,0.36574321,2548.7,2548.5,11.748]
[1748072498539,0.36574321,2548.6,2548.5,11.748]
[1748072498836,0.36574321,2548.6,2548.3,0.7612]
[1748072499011,0.36574321,2548.6,2548.4,11.749]
[1748072499208,10.351,2548.6,2548.5,16.918]
[1748072499426,10.351,2548.6,2548.5,26.429]
[1748072500225,10.71696271,2548.6,2548.5,26.429]
[1748072503443,10.71696271,2548.6,2548.5,11.749]
[1748072506761,8.0,2548.5,2548.1,0.05]
[1748072506966,2.71696271,2548.6,2548.2,11.75]
[1748072507265,0.36596271,2548.5,2548.2,11.75]
[1748072507967,0.36596271,2548.4,2548.2,11.75]
[1748072508441,0.36596271,2548.4,2548.1,0.05]
[1748072508442,3.51246271,2548.4,2548.1,0.05]
[1748072508639,3.51246271,2548.4,2548.2,11.75]
[1748072508846,3.51246271,2548.4,2548.1,0.05]
[1748072509037,3.51246271,2548.4,2548.2,11.75]
[1748072509242,3.6965,2548.4,2548.3,43.352]
[1748072510344,2.71667813,2548.4,2548.3,43.352]
[1748072510560,0.36567813,2548.4,2548.3,26.432]
[1748072512171,0.36567813,2548.4,2548.1,0.8092]
[1748072512374,0.36567813,2548.4,2548.3,11.75]
[1748072516272,0.36567813,2548.4,2548.3,13.00592]
[1748072516470,0.36567813,2548.4,2548.3,13.82732]
[1748072519264,0.36567813,2548.4,2548.3,45.43132]
[1748072519793,0.36567813,2548.4,2548.3,33.68132]
[1748072520093,0.36567813,2548.4,2548.3,45.43132]
[1748072521795,0.36567813,2548.4,2548.3,28.51032]
[1748072522693,0.36567813,2548.4,2548.3,2.07732]
[1748072522856,0.36567813,2548.4,2548.3,12.5714]
[1748072523595,0.36567813,2548.4,2548.3,0.8214]
[1748072523788,0.36567813,2548.4,2548.3,12.5714]
[1748072529195,0.36567813,2548.4,2548.3,44.1704]
[1748072530177,0.36567813,2548.4,2548.3,27.2504]
[1748072530377,0.36567813,2548.4,2548.3,29.98044]
[1748072530574,0.36567813,2548.4,2548.3,15.30144]
[1748072530777,0.36567813,2548.4,2548.3,12.5714]
[1748072533213,0.36567813,2548.4,2548.3,0.8214]
[1748072533385,0.36567813,2548.4,2548.3,12.5704]
[1748072537504,8.0,2549.1,2548.3,12.5704]
[1748072537723,0.7665,2548.9,2548.4,11.749]
[1748072538423,0.3663048,2548.8,2548.4,11.749]
[1748072539100,0.3663048,2548.8,2548.5,31.597]
[1748072539518,0.3663048,2548.7,2548.5,31.597]
[1748072540089,0.3663048,2548.7,2548.6,11.749]
[1748072540423,0.7665,2548.9,2548.6,11.749]
[1748072541127,0.36645769,2548.8,2548.6,11.749]
[1748072542031,0.36645769,2548.7,2548.6,11.749]
[1748072542732,0.7665,2548.9,2548.6,11.749]
[1748072543039,0.36658072,2548.7,2548.6,11.749]
[1748072548943,0.36658072,2548.7,2548.3,0.8214]
[1748072549131,0.36658072,2548.7,2548.4,43.346]
[1748072549333,0.36658072,2548.6,2548.4,43.346]
[1748072550359,0.36658072,2548.5,2548.4,43.346]
[1748072550665,0.36658072,2548.5,2548.4,46.47860625]
[1748072552152,0.36658072,2548.5,2548.1,1.49193046]
[1748072552355,0.36658072,2548.5,2548.2,11.749]
[1748072553244,0.36658072,2548.4,2548.2,11.749]
[1748072553616,0.36658072,2548.4,2548.1,1.49193046]
[1748072553820,0.36658072,2548.4,2548.2,11.749]
[1748072554352,0.36658072,2548.4,2548.3,11.749]
[1748072554571,1.17098072,2548.3,2548.1,0.66263046]
[1748072554783,1.17098072,2548.3,2548.2,11.749]
[1748072555232,1.17098072,2548.3,2548.1,0.66263046]
[1748072555637,1.17098072,2548.3,2548.2,11.749]
[1748072555833,1.17098072,2548.3,2548.1,0.66263046]
[1748072556038,16.68352198,2548.2,2548.1,0.66263046]
[1748072556261,3.92501814,2547.8,2547.1,0.05]
[1748072556437,1.35153197,2547.4,2547.1,0.05]
[1748072556869,0.36658072,2547.3,2547.2,11.749]
[1748072557072,0.61883199,2547.3,2547.1,0.05]
[1748072557276,0.61883199,2547.3,2547.2,11.749]
[1748072558249,0.61883199,2547.3,2547.1,0.05]
[1748072558462,0.61883199,2547.3,2547.2,11.749]
[1748072559239,0.61883199,2547.3,2547.2,31.599]
[1748072559240,1.42323199,2547.3,2547.2,31.599]
[1748072559480,1.97323199,2547.3,2547.2,43.35]
[1748072559636,10.77476396,2547.3,2547.2,43.35]
[1748072561290,0.36658072,2547.3,2547.2,26.428]
[1748072561438,0.36658072,2547.3,2547.2,27.2436]
[1748072561847,0.36658072,2547.3,2547.1,0.05]
[1748072562058,0.36658072,2547.3,2547.2,11.753]
[1748072562379,3.68836581,2547.8,2547.2,11.753]
[1748072562559,0.44440658,2547.7,2547.2,11.753]
[1748072562763,0.44440658,2547.7,2547.1,0.05]
[1748072562962,1.35153197,2547.4,2547.2,11.753]
[1748072563847,0.7557,2547.5,2547.2,11.753]
[1748072564078,0.36658072,2547.6,2547.2,11.753]
[1748072564285,0.61396199,2547.6,2547.2,11.753]
[1748072564882,1.96549396,2547.6,2547.1,0.05]
[1748072565190,1.35153197,2547.2,2547.1,0.05]
[1748072565390,1.35153197,2547.2,2547.1,11.804]
[1748072565575,9.35153197,2547.4,2547.1,11.804]
[1748072565775,8.0,2547.4,2547.1,11.804]
[1748072566493,1.17658072,2547.5,2547.1,11.804]
[1748072566786,8.36658072,2547.5,2547.1,11.804]
[1748072568894,9.26365631,2547.5,2547.1,11.804]
[1748072569078,1.71811269,2547.5,2547.1,11.804]
[1748072569279,9.71811269,2547.5,2547.2,16.927]
[1748072569491,9.71811269,2547.5,2547.2,43.363]
[1748072569682,9.71811269,2547.5,2547.3,11.755]
[1748072569989,0.36658072,2547.4,2547.3,11.755]
[1748072571095,8.36658072,2547.5,2547.3,11.755]
[1748072576885,2.351,2547.4,2547.3,11.755]
[1748072577099,8.36658072,2547.5,2547.3,11.755]
[1748072577273,0.36658072,2547.4,2547.3,11.755]
[1748072578068,0.36658072,2547.4,2547.1,0.05]
[1748072578286,8.36658072,2547.5,2547.2,11.755]
[1748072578875,9.71811269,2547.5,2547.1,0.05]
[1748072579069,9.71811269,2547.5,2547.2,28.683]
[1748072579275,9.71811269,2547.5,2547.2,43.365]
[1748072580009,0.36658072,2547.4,2547.2,43.365]
[1748072580412,0.36658072,2547.4,2547.1,0.05]
[1748072580616,0.36658072,2547.4,2547.3,26.438]
[1748072580816,0.36658072,2547.4,2547.3,11.756]
[1748072584293,1.3541,2547.3,2547.1,0.05]
[1748072584488,10.70563197,2547.3,2547.2,11.756]
[1748072584893,11.07221269,2547.3,2547.2,11.756]
[1748072585588,8.0,2547.2,2547.1,0.05]
[1748072585919,2.52221269,2547.3,2547.1,0.05]
[1748072586220,0.25222127,2547.2,2547.1,0.05]
[1748072586386,0.25222127,2547.2,2547.1,11.806]
[1748072586585,0.61880199,2547.2,2547.1,11.806]
[1748072588030,0.61880199,2547.2,2547.1,0.05]
[1748072588259,0.61880199,2547.2,2547.1,11.806]
[1748072588537,8.61880199,2547.2,2547.1,11.806]
[1748072588829,13.89878138,2547.2,2547.1,0.05]
[1748072589008,13.89878138,2547.2,2547.1,11.806]
[1748072589190,13.89878138,2547.2,2547.1,43.432]
[1748072592112,13.89878138,2547.2,2547.1,31.676]
[1748072592407,13.89878138,2547.2,2547.1,43.433]
[1748072592612,9.97290199,2547.2,2547.1,43.434]
[1748072593749,9.97290199,2547.2,2547.1,16.979]
[1748072594043,9.97290199,2547.2,2547.1,43.434]
[1748072594757,0.36658072,2547.2,2547.1,43.434]
[1748072594924,0.36658072,2547.2,2547.1,44.2141]
[1748072596461,0.36658072,2547.2,2547.1,27.2851]
[1748072598457,0.36658072,2547.2,2547.1,12.5871]
[1748072599163,0.36658072,2547.2,2547.1,44.2151]
[1748072604844,0.36658072,2547.2,2547.1,12.5871]
[1748072606870,1.71811269,2547.2,2547.1,0.05]
[1748072607036,10.52071396,2547.2,2547.1,11.806]
[1748072607239,12.87171396,2547.2,2547.1,11.806]
[1748072607475,13.67961396,2547.2,2547.1,0.05]
[1748072607650,13.67961396,2547.2,2547.1,11.806]
[1748072607850,17.60549335,2547.2,2547.1,11.806]
[1748072608177,13.67961396,2547.2,2547.1,11.806]
[1748072608475,17.60549335,2547.2,2547.1,11.806]
[1748072609150,17.60549335,2547.2,2547.1,43.432]
[1748072610573,17.60549335,2547.2,2547.1,16.979]
[1748072610761,17.60549335,2547.2,2547.1,43.433]
[1748072611672,8.55,2546.9,2546.1,0.8089]
[1748072611844,1.35153197,2546.8,2546.2,14.698]
[1748072612039,1.35153197,2546.8,2546.1,0.8089]
[1748072612240,2.11983197,2546.8,2546.1,0.8089]
[1748072612475,0.36658072,2546.7,2546.1,0.8089]
[1748072612878,0.36658072,2546.7,2546.2,11.757]
[1748072613382,0.36658072,2546.6,2546.2,11.757]
[1748072614976,0.36658072,2546.5,2546.2,11.757]
[1748072615781,0.36658072,2546.4,2546.2,11.757]
[1748072616080,0.36658072,2546.4,2546.2,13.01359]
[1748072616377,0.36658072,2546.4,2546.3,0.7705]
[1748072618986,0.36658072,2546.4,2546.3,11.758]
[1748072619188,0.36658072,2546.4,2546.3,43.394]
[1748072620877,0.36658072,2546.4,2546.3,16.932]
[1748072621094,0.36658072,2546.4,2546.3,43.394]
[1748072621690,0.36658072,2546.4,2546.3,14.704]
[1748072621896,0.36658072,2546.4,2546.3,26.462]
[1748072622185,0.36658072,2546.4,2546.1,0.8205]
[1748072622393,0.36658072,2546.4,2546.2,11.758]
[1748072622767,0.36658072,2546.3,2546.2,11.758]
[1748072624489,0.36658072,2546.3,2546.1,0.8205]
[1748072624711,0.36658072,2546.3,2546.2,11.758]
[1748072625290,0.36658072,2546.3,2546.2,11.759]
[1748072627611,2.71758072,2546.3,2546.2,11.759]
[1748072627794,0.36658072,2546.3,2546.2,11.759]
[1748072629212,0.36658072,2546.3,2546.2,43.398]
[1748072632632,0.36658072,2546.3,2546.2,11.759]
[1748072639232,0.36658072,2546.3,2546.2,43.4]
[1748072640945,0.36658072,2546.3,2546.2,45.46061506]
[1748072641811,0.36658072,2546.3,2546.2,44.2065]
[1748072642947,0.36658072,2546.3,2546.2,12.5655]
[1748072646637,0.36658072,2546.3,2546.1,0.05]
[1748072646844,0.36658072,2546.3,2546.2,11.759]
[1748072647164,8.8164,2546.5,2546.2,11.759]
[1748072647762,0.8164,2546.5,2546.2,11.759]
[1748072647968,0.36705543,2546.4,2546.2,11.759]
[1748072649169,0.8164,2546.5,2546.3,31.621]
[1748072650226,0.367062,2546.4,2546.3,31.621]
[1748072650938,0.367062,2546.4,2546.3,43.381]
[1748072651574,0.55,2546.2,2546.1,0.05]
[1748072651748,9.35153197,2546.3,2546.1,11.81]
[1748072652145,0.367062,2546.2,2546.1,11.81]
[1748072655962,1.178462,2546.2,2546.1,11.811]
[1748072659194,1.178462,2546.2,2546.1,43.436]
[1748072659808,8.00688325,2546.2,2546.1,0.05]
[1748072660100,16.00688325,2546.2,2546.1,43.436]
[1748072660600,15.19548325,2546.2,2546.1,31.675]
[1748072660893,15.99348325,2546.2,2546.1,43.436]
[1748072663317,15.99348325,2546.2,2546.1,16.986]
[1748072663479,15.99348325,2546.2,2546.1,43.437]
[1748072664616,15.99348325,2546.2,2546.1,16.986]
[1748072664813,15.99348325,2546.2,2546.1,43.438]
[1748072665180,15.99348325,2546.2,2546.1,16.986]
[1748072665519,15.99348325,2546.2,2546.1,43.438]
[1748072666280,15.99348325,2546.2,2546.1,31.676]
[1748072666493,15.99348325,2546.2,2546.1,43.438]
[1748072667116,0.367062,2546.2,2546.1,26.502]
[1748072667620,0.367062,2546.2,2546.1,11.812]
[1748072667929,0.367062,2546.2,2546.1,12.59]
[1748072668233,8.367062,2546.2,2546.1,12.59]
[1748072669222,8.367062,2546.2,2546.1,44.219]
[1748072673343,8.367062,2546.2,2546.1,12.59]
[1748072674122,8.367062,2546.2,2546.1,0.828]
[1748072674321,8.367062,2546.2,2546.1,12.59]
[1748072677091,0.367062,2546.2,2546.1,12.59]
[1748072677291,0.367062,2546.2,2546.1,13.849]
[1748072679244,0.367062,2546.2,2546.1,45.478]
[1748072681844,0.367062,2546.8,2546.1,45.478]
[1748072682039,0.367062,2546.8,2546.1,28.543]
[1748072682758,0.367062,2546.7,2546.2,0.778]
[1748072682960,0.367062,2546.7,2546.3,1.3849]
[1748072683635,0.367062,2546.6,2546.3,1.3849]
[1748072683858,0.367062,2546.6,2546.2,0.778]
[1748072684559,0.367062,2546.5,2546.2,0.778]
[1748072685223,0.367062,2546.4,2546.2,0.778]
[1748072685439,0.367062,2546.4,2546.3,11.76]
[1748072689365,0.367062,2546.4,2546.3,43.387]
[1748072689519,0.367062,2546.4,2546.3,47.33699309]
[1748072691027,0.367062,2546.4,2546.3,30.40299309]
[1748072691428,0.367062,2546.9,2546.3,30.40299309]
[1748072691663,0.367062,2546.9,2546.3,15.70999309]
[1748072691974,0.367062,2546.9,2546.3,11.76]
[1748072692524,0.367062,2546.8,2546.3,11.76]
[1748072693063,0.367062,2546.8,2546.4,0.789]
[1748072693264,0.367062,2546.7,2546.4,0.82826186]
[1748072693469,0.367062,2546.7,2546.4,0.789]
[1748072693878,0.367062,2546.7,2546.6,0.789]
[1748072694469,0.36594689,2547.3,2546.6,0.789]
[1748072695550,0.36594689,2547.2,2546.6,0.789]
[1748072696135,0.36594689,2547.1,2546.6,0.789]
[1748072696655,10.19,2547.6,2546.6,0.789]
[1748072696853,2.12513197,2547.8,2546.8,0.7945]
[1748072697465,8.0,2547.9,2546.8,0.7945]
[1748072697787,14.28998509,2548.0,2546.8,0.7945]
[1748072697788,0.36578534,2547.7,2546.8,0.7945]
[1748072698337,0.36578534,2547.6,2546.8,0.7945]
[1748072699286,0.36578534,2547.5,2547.0,0.7945]
[1748072699468,0.36578534,2547.5,2547.2,0.7945]
[1748072699641,0.36578534,2547.5,2547.3,11.758]
[1748072699838,0.36578534,2547.5,2547.4,14.689]
[1748072700145,0.36578534,2547.9,2547.4,14.689]
[1748072700345,2.13193197,2547.8,2547.2,0.7945]
[1748072700544,0.24977173,2547.7,2547.5,11.757]
[1748072700945,1.35153197,2547.6,2546.8,0.8286]
[1748072701153,1.35153197,2547.6,2546.9,11.757]
[1748072701359,0.7804,2547.5,2547.0,11.757]
[1748072701560,1.14618534,2547.5,2547.0,11.757]
[1748072702384,0.36578534,2547.4,2547.0,11.757]
[1748072702588,1.71731731,2547.4,2546.8,0.8286]
[1748072702885,1.35153197,2547.0,2546.9,11.756]
[1748072703051,0.7804,2547.1,2546.9,11.756]
[1748072703500,0.36578534,2547.0,2546.9,11.756]
[1748072706576,0.36578534,2547.0,2546.4,0.8286]
[1748072706781,0.36578534,2547.0,2546.5,11.757]
[1748072707090,0.36578534,2546.9,2546.5,11.757]
[1748072707802,0.36578534,2546.9,2546.6,11.757]
[1748072708097,0.36578534,2546.8,2546.6,11.757]
[1748072708662,0.36578534,2546.8,2546.4,0.8286]
[1748072708886,0.36578534,2546.8,2546.5,11.757]
[1748072709294,0.36578534,2546.7,2546.6,31.613]
[1748072710099,0.36578534,2546.7,2546.6,43.37]
[1748072712098,0.36578534,2546.7,2546.6,26.44]
[1748072713783,0.36578534,2546.7,2546.6,11.757]
[1748072715402,0.36578534,2546.7,2546.4,0.8286]
[1748072715571,0.36578534,2546.7,2546.5,11.757]
[1748072716412,0.36578534,2546.6,2546.5,11.757]
[1748072717513,0.36578534,2546.6,2546.4,0.8286]
[1748072717716,0.36578534,2546.6,2546.5,11.757]
[1748072719318,0.36578534,2546.6,2546.5,43.371]
[1748072721822,0.36578534,2546.6,2546.5,26.44]
[1748072723087,0.36578534,2546.6,2546.2,0.823565]
[1748072723426,0.36578534,2546.6,2546.3,11.758]
[1748072723623,0.36578534,2546.5,2546.3,11.758]
[1748072724193,0.36578534,2546.4,2546.3,11.758]
[1748072729133,0.36578534,2546.4,2546.3,43.373]
[1748072732953,0.36578534,2546.4,2546.3,26.442]
[1748072733323,0.36578534,2546.4,2546.2,0.001965]
[1748072733527,0.36578534,2546.4,2546.3,11.758]
[1748072734654,0.36578534,2546.4,2546.2,0.001965]
[1748072734885,0.36578534,2546.4,2546.3,11.758]
[1748072736433,0.7743,2546.3,2546.2,0.001965]
[1748072736623,11.89061747,2546.3,2546.2,0.001965]
[1748072736952,13.79214944,2546.3,2546.2,0.001965]
[1748072737153,13.79214944,2546.3,2546.2,11.759965]
[1748072737740,13.79214944,2546.3,2546.2,0.001965]
[1748072737942,13.79214944,2546.3,2546.2,11.759965]
[1748072738148,13.79214944,2546.3,2546.2,0.001965]
[1748072738449,13.79214944,2546.3,2546.2,11.759965]
[1748072738673,13.79214944,2546.3,2546.2,0.001965]
[1748072738973,13.79214944,2546.3,2546.2,11.760965]
[1748072739274,13.79214944,2546.3,2546.2,43.376965]
[1748072739976,17.71941645,2546.3,2546.2,43.376965]
[1748072742075,13.79214944,2546.3,2546.2,43.376965]
[1748072743339,2.71878534,2546.3,2546.2,43.376965]
[1748072743539,0.36578534,2546.3,2546.2,43.376965]
[1748072743745,8.36578534,2546.3,2546.2,0.001965]
[1748072743974,8.36578534,2546.3,2546.2,26.445965]
[1748072744839,10.71878534,2546.3,2546.2,26.445965]
[1748072746079,10.71878534,2546.3,2546.2,11.761965]
[1748072746576,12.06688534,2546.3,2546.2,0.001965]
[1748072747075,15.99415235,2546.3,2546.2,11.761965]
[1748072749181,15.99415235,2546.3,2546.2,43.382965]
[1748072749364,15.99415235,2546.3,2546.2,31.622965]
[1748072749680,15.99415235,2546.3,2546.2,16.937965]
[1748072749974,15.99415235,2546.3,2546.2,43.383965]
[1748072750180,26.18415235,2546.3,2546.2,43.383965]
[1748072751884,26.18415235,2546.3,2546.2,31.622965]
[1748072752062,26.18415235,2546.3,2546.2,43.384965]
[1748072753087,26.18415235,2546.3,2546.2,16.937965]
[1748072753088,27.53568432,2546.3,2546.2,16.937965]
[1748072753256,11.6965,2545.8,2545.7,0.6130545]
[1748072753581,23.23803197,2545.8,2545.7,44.0000545]
[1748072754487,23.60381731,2545.8,2545.7,44.0000545]
[1748072754661,27.53185564,2545.8,2545.7,44.0000545]
[1748072756788,22.81031731,2545.8,2545.7,44.0000545]
[1748072757413,26.73835564,2545.8,2545.7,17.5510545]
[1748072757591,27.53185564,2545.8,2545.7,44.0020545]
[1748072758152,23.60381731,2545.8,2545.7,44.0020545]
[1748072758706,27.53185564,2545.8,2545.7,44.0020545]
[1748072758879,23.60381731,2545.8,2545.7,44.0020545]
[1748072759256,22.81031731,2545.8,2545.7,44.0020545]
[1748072760805,21.45878534,2545.8,2545.7,27.0640545]
[1748072760956,22.81031731,2545.8,2545.7,27.0640545]
[1748072763505,21.45878534,2545.8,2545.7,12.3760545]
[1748072765059,10.71878534,2545.8,2545.7,12.3760545]
[1748072765261,10.71878534,2545.8,2545.7,13.1700545]
[1748072765858,10.71878534,2545.8,2545.7,0.6130545]
[1748072766062,10.71878534,2545.8,2545.7,12.3770545]
[1748072768284,10.71878534,2545.8,2545.7,13.1710545]
[1748072768470,12.07031731,2545.8,2545.7,13.1710545]
[1748072768895,12.07031731,2545.8,2545.7,12.3770545]
[1748072769135,12.07031731,2545.8,2545.7,44.0110545]
[1748072772137,12.62031731,2545.8,2545.7,27.0710545]
[1748072773737,12.62031731,2545.8,2545.7,0.6130545]
[1748072773913,12.62031731,2545.8,2545.7,12.3770545]
[1748072775000,17.31315564,2545.8,2545.7,12.3770545]
[1748072775919,17.31315564,2545.8,2545.7,0.6130545]
[1748072776126,17.31315564,2545.8,2545.7,12.3770545]
[1748072776335,2.903,2545.4,2544.7,0.756]
[1748072776565,3.70453197,2545.2,2544.7,0.756]
[1748072776765,12.25453197,2545.2,2545.1,0.66347344]
[1748072776937,12.25453197,2545.2,2545.1,12.42747344]
[1748072777436,12.62031731,2545.2,2545.1,12.42747344]
[1748072778260,10.71878534,2545.2,2545.1,13.18347344]
[1748072778960,12.62031731,2545.2,2545.1,12.42847344]
[1748072779160,12.62031731,2545.2,2545.1,44.06547344]
[1748072779364,10.71878534,2545.2,2545.1,44.06547344]
[1748072780465,10.71878534,2545.2,2545.1,17.60447344]
[1748072780635,10.71878534,2545.2,2545.1,44.06547344]
[1748072780819,12.07518548,2545.2,2545.1,44.06547344]
[1748072781361,12.07518548,2545.2,2545.1,27.12447344]
[1748072781958,12.07518548,2545.2,2545.1,12.42847344]
[1748072782160,10.71878534,2545.2,2545.1,12.42847344]
[1748072782368,10.71878534,2545.2,2545.1,13.18087344]
[1748072782669,10.71878534,2545.2,2545.1,12.42847344]
[1748072782826,10.71878534,2545.2,2545.1,0.66347344]
[1748072783027,10.71878534,2545.2,2545.1,12.42847344]
[1748072784250,10.71878534,2545.2,2545.1,12.42947344]
[1748072785270,10.71878534,2545.2,2545.1,0.66347344]
[1748072785271,12.62518548,2545.2,2545.1,0.66347344]
[1748072785571,13.44248548,2545.2,2545.1,12.42947344]
[1748072785869,12.62518548,2545.2,2545.1,0.66347344]
[1748072786049,12.62518548,2545.2,2545.1,12.42947344]
[1748072786454,16.5541498,2545.2,2545.1,12.42947344]
[1748072786650,17.3714498,2545.2,2545.1,12.42947344]
[1748072788057,27.5614498,2545.2,2545.1,12.42947344]
[1748072788562,27.5614498,2545.2,2545.1,0.66347344]
[1748072788767,27.5614498,2545.2,2545.1,12.42947344]
[1748072789366,27.5614498,2545.2,2545.1,44.07147344]
[1748072791278,22.81518548,2545.2,2545.1,44.07147344]
[1748072791992,21.45878534,2545.2,2545.1,44.07147344]
[1748072792574,27.5614498,2545.2,2545.1,44.07347344]
[1748072795387,27.5614498,2545.2,2545.1,17.60747344]
[1748072795576,27.5614498,2545.2,2545.1,43.487]
[1748072796683,27.5614498,2545.2,2545.1,43.488]
[1748072797172,2.903,2544.9,2544.8,0.61367669]
[1748072797379,16.18882762,2544.9,2544.8,15.33967669]
[1748072797889,16.55461296,2544.9,2544.8,15.33967669]
[1748072798060,12.62518548,2544.9,2544.8,15.33967669]
[1748072798265,12.62518548,2544.9,2544.8,26.494]
[1748072799279,12.62518548,2544.9,2544.8,43.441]
[1748072799869,12.62518548,2544.9,2544.8,31.673]
[1748072800069,22.81518548,2544.9,2544.8,43.441]
[1748072800769,22.26518548,2544.9,2544.8,31.674]
[1748072801077,22.81518548,2544.9,2544.8,43.442]
[1748072802592,26.74461296,2544.9,2544.8,31.674]
[1748072802889,26.74461296,2544.9,2544.8,43.443]
[1748072805857,26.74461296,2544.9,2544.8,16.947]
[1748072806193,26.74461296,2544.9,2544.8,43.443]
[1748072808601,22.81518548,2544.9,2544.8,43.443]
[1748072809097,21.45878534,2544.9,2544.8,43.443]
[1748072810588,26.74461296,2544.9,2544.8,43.443]
[1748072811280,22.81518548,2544.9,2544.8,43.443]
[1748072812401,26.74461296,2544.9,2544.8,43.443]
[1748072815216,2.903,2544.7,2544.4,0.8291]
[1748072815401,2.353,2544.5,2544.4,0.8291]
[1748072815719,10.903,2544.5,2544.4,0.8291]
[1748072816067,11.26878534,2544.5,2544.4,0.8291]
[1748072816268,11.26878534,2544.5,2544.4,12.5981]
[1748072817022,11.26878534,2544.5,2544.4,11.769]
[1748072819104,10.71878534,2544.5,2544.4,11.769]
[1748072819308,10.71878534,2544.5,2544.4,44.2741]
[1748072820308,0.36578534,2544.5,2544.4,31.27609309]
[1748072820482,0.36578534,2544.5,2544.4,16.54809309]
[1748072820665,0.36578534,2544.5,2544.4,12.5981]
[1748072823110,1.97025312,2545.1,2544.5,0.7841]
[1748072823967,2.353,2545.4,2544.5,0.7841]
[1748072824292,0.36656872,2545.3,2544.5,0.7841]
[1748072825029,0.36642679,2545.2,2544.5,0.7841]
[1748072825251,0.36642679,2545.2,2544.6,1.25531]
[1748072825555,0.36642679,2545.2,2544.7,0.8039]
[1748072825917,0.36642679,2545.1,2544.7,0.8039]
[1748072826648,0.36642679,2545.1,2544.8,11.768]
[1748072826836,0.36642679,2545.0,2544.8,11.768]
[1748072827154,0.36642679,2545.0,2544.9,0.8039]
[1748072829167,0.36642679,2545.0,2544.9,32.4579]
[1748072830463,0.36642679,2545.0,2544.9,34.97824078]
[1748072830868,0.36642679,2545.0,2544.9,46.74524078]
[1748072833072,0.36642679,2545.0,2544.9,15.09124078]
[1748072833279,0.36642679,2545.0,2544.9,12.5709]
[1748072836180,0.36642679,2545.0,2544.2,0.7554]
[1748072836471,2.71942679,2545.0,2544.4,0.7554]
[1748072836966,8.0,2544.9,2544.5,11.767]
[1748072837172,10.353,2544.9,2544.4,0.7554]
[1748072837354,3.47132679,2544.8,2544.5,11.767]
[1748072837877,2.71942679,2544.8,2544.6,11.767]
[1748072838462,0.36642679,2544.7,2544.6,11.767]
[1748072839269,0.36642679,2544.7,2544.6,43.421]
[1748072842039,0.36642679,2544.7,2544.6,26.476]
[1748072843474,0.36642679,2544.7,2544.6,14.709]
[1748072843654,0.36642679,2544.7,2544.6,26.476]
[1748072845172,8.36642679,2544.7,2544.4,0.7554]
[1748072845404,0.36642679,2544.7,2544.5,11.768]
[1748072845896,0.36642679,2544.6,2544.5,11.768]
[1748072849267,0.36642679,2544.6,2544.5,43.424]
[1748072850316,0.36642679,2544.6,2544.1,0.8822]
[1748072850317,2.71942679,2544.6,2544.1,0.8822]
[1748072850500,2.62494268,2544.5,2544.1,0.05]
[1748072850700,2.62494268,2544.5,2544.2,11.768]
[1748072850901,2.71942679,2544.4,2544.3,11.768]
[1748072853116,2.71942679,2544.4,2544.1,0.05]
[1748072853272,2.353,2544.2,2544.1,0.05]
[1748072853710,2.353,2544.2,2544.1,11.819]
[1748072854411,2.71942679,2544.2,2544.1,11.819]
[1748072855511,2.71942679,2544.2,2544.1,0.05]
[1748072855713,2.71942679,2544.2,2544.1,11.819]
[1748072855919,3.15692318,2544.2,2544.1,11.819]
[1748072856418,0.36642679,2544.2,2544.1,11.819]
[1748072856717,0.36642679,2544.2,2544.1,12.623]
[1748072858119,2.71942679,2544.2,2544.1,12.623]
[1748072858423,0.36642679,2544.2,2544.1,12.623]
[1748072859191,0.36642679,2544.2,2544.1,44.265]
[1748072860303,0.36642679,2544.2,2544.1,47.93256265]
[1748072860506,0.36642679,2544.2,2544.1,30.98456265]
[1748072861287,0.36642679,2544.2,2544.1,16.29056265]
[1748072861489,0.36642679,2544.2,2544.1,12.623]
[1748072863293,10.71942679,2544.9,2544.1,0.854]
[1748072863516,2.353,2544.7,2544.2,11.769]
[1748072864522,0.36642679,2544.6,2544.2,11.769]
[1748072865437,0.36642679,2544.6,2544.3,11.769]
[1748072866040,0.36642679,2544.5,2544.3,11.769]
[1748072866536,0.36642679,2544.4,2544.3,11.769]
[1748072867321,0.36642679,2544.4,2544.1,0.854]
[1748072867638,0.36642679,2544.4,2544.3,11.769]
[1748072869245,0.36642679,2544.4,2544.3,43.409]
[1748072870841,0.36642679,2544.4,2544.3,26.462]
[1748072871338,0.36642679,2544.4,2544.3,12.5878]
[1748072873210,0.36642679,2544.4,2544.3,11.769]
[1748072876818,0.36642679,2544.4,2544.1,0.8688]
[1748072877025,0.36642679,2544.4,2544.3,11.769]
[1748072879136,0.36642679,2544.4,2544.3,43.409]
[1748072880959,0.36642679,2544.4,2544.3,48.16079309]
[1748072882265,0.36642679,2544.4,2544.3,4.75179309]
[1748072882472,0.36642679,2544.4,2544.3,11.769]
[1748072882978,8.36642679,2544.4,2544.1,0.05]
[1748072883278,10.71942679,2544.4,2544.1,0.05]
[1748072883452,3.1714,2544.3,2544.2,11.768]
[1748072883658,11.53782679,2544.3,2544.2,11.768]
[1748072883860,13.44422693,2544.3,2544.2,11.768]
[1748072884385,10.353,2544.2,2544.1,0.05]
[1748072884692,10.71942679,2544.2,2544.1,11.818]
[1748072885145,10.71942679,2544.2,2544.1,0.05]
[1748072885346,10.71942679,2544.2,2544.1,11.818]
[1748072885546,10.71942679,2544.2,2544.1,0.05]
[1748072885785,10.71942679,2544.2,2544.1,11.819]
[1748072887585,0.36642679,2544.2,2544.1,11.819]
[1748072887747,1.18482679,2544.2,2544.1,11.819]
[1748072887944,1.43894948,2544.2,2544.1,11.819]
[1748072888586,3.79194948,2544.2,2544.1,11.819]